Cogmind - Beta 17 @@@ ROGUE MODE // 2026.07.14 @ 21:26:48 Player: Winged Result: Destroyed by G-34 Mercenary with Small Laser Performance ------------- Evolutions (1) 500 Regions Visited (3) 600 Robots Destroyed (27) 135 Value Destroyed (835) 835 Prototype IDs (1) 20 Alien Tech Used (0) 0 Bonus (0) 0 TOTAL SCORE: 2090 Bonus ------- None Cogmind --------- Core Integrity 0/400 Matter 300/300 Energy 100/100 System Corruption 19% Temperature Cool (12) Movement Core (400) Ox7 Location -9/Materials Parts ------- > --- POWER (1) -------- (None) > --- PROPULSION (2) --- (None) > --- UTILITY (4) ------ Large Storage Unit > --- WEAPON (2) ------- Makeshift Hammer > --- INVENTORY (15) --- Small Storage Unit Medium Storage Unit High-capacity Matter Pod (200) Small Laser Light Assault Rifle Mini Grenade Launcher Plasma Cutter Peak State ------------ > --- POWER ------------ Light Ion Engine > --- PROPULSION ------- Wheel Wheel > --- UTILITY ---------- Disposable Heat Sink Small Storage Unit Structural Scanner Improved Terrain Scanner > --- WEAPON ----------- Mini Grenade Launcher Makeshift Hammer > --- INVENTORY -------- Wheel Improved Hover Unit High-capacity Matter Pod Small Laser Beam Rifle Light Assault Rifle Plasma Cutter [Rating: 17] Favorites ----------- Power Ion Engine Engine Ion Engine Propulsion Wheel Leg Aluminum Leg Wheel Wheel Hover Unit Improved Hover Unit Utility Small Storage Unit Device Structural Scanner Storage Small Storage Unit Weapon EM Pulse Gun Energy Gun EM Pulse Gun Launcher Mini Grenade Launcher Special Weapon Mining Laser Impact Weapon Makeshift Hammer Build | -11 -10 -10 -9 ------- Run | Yrd Mat Min Mat Slots Evolved 2 | . . . 2 Power . | . . . . Propulsion . | . . . . Utility 2 | . . . 2 Weapon . | . . . . Parts Attached 25 | 9 3 1 12 Power 3 | 1 . . 2 Engine 3 | 1 . . 2 Core . | . . . . Reactor . | . . . . Propulsion 6 | 2 . 1 3 Treads . | . . . . Leg 1 | . . . 1 Wheel 4 | 2 . 1 1 Hover 1 | . . . 1 Flight . | . . . . Utility 9 | 3 2 . 4 Device 5 | 2 1 . 2 Storage 4 | 1 1 . 2 Processor . | . . . . Hackware . | . . . . Protection . | . . . . Artifact . | . . . . Weapon 7 | 3 1 . 3 Energy Gun 4 | 2 1 . 1 Energy Cannon . | . . . . Ballistic Gun . | . . . . Ballistic Cannon . | . . . . Launcher 1 | . . . 1 Special Weapon 1 | 1 . . . Impact Weapon 1 | . . . 1 Slashing Weapon . | . . . . Piercing Weapon . | . . . . Special Melee Weapon . | . . . . Unidentified Prototypes . | . . . . Corrupted Parts 2 | . . . 2 System Corruption 19 | . . . 19 Parts Lost 11 | . . . 11 Power 2 | . . . 2 Propulsion 5 | . . . 5 Utility 3 | . . . 3 Weapon 1 | . . . 1 Highest Loss Streak 6 | . . . 6 To Critical Strikes . | . . . . Average Backups 7 | 3 8 8 7 Power . | . 1 1 . Propulsion 1 | 1 1 1 1 Utility 1 | 1 1 2 1 Weapon 3 | 1 3 4 3 Tool/Special . | . . . . Unused Backups 6 | . 2 1 3 Power 1 | . 1 . . Propulsion 2 | . 1 1 . Utility . | . . . . Weapon 2 | . . . 2 Tool/Special 1 | . . . 1 Average Slot Usage (%) 95 | . 100 100 86 Engine 12 | . 14 14 10 Wheel 24 | . 28 28 16 Device 17 | . 13 14 26 Storage 13 | . 14 14 11 Energy Gun 20 | . 26 28 7 Impact Weapon 3 | . . . 9 Peak Build Rating 17 | 8 8 8 17 Average Rating 9 | 6 7 8 14 On Entrance 6 | . 8 8 8 Avg Prop Armor Cover (%) 13 | . . . 13 Naked Turns . | . . . . Heaviest Build 32 | 14 14 14 32 Greatest Support 20 | 20 20 20 20 Greatest Overweight (x) 7 | . . . 7 Average Overweight (x) . | . . . . Largest Inventory Capacity 15 | 8 8 8 15 Average Capacity 8 | 7 8 8 10 Most Carried 9 | 8 8 8 9 Average Carried 7 | 3 7 7 7 Final Capacity 15 | 8 8 8 15 Final Carried 8 | 8 8 8 7 Class Distribution -------------------- 100% | Mutant Dominant Class ---------------- Mutant | -10/Materials Mutant | -10/Mines Mutant | -9/Materials Resources | -11 -10 -10 -9 ----------- Run | Yrd Mat Min Mat Matter Collected 712 | 290 76 204 142 Remotely 94 | 94 . . . Salvage Created 1076 | 107 195 127 647 Parts 52 | 7 11 8 26 Haulers Intercepted . | . . . . Recyclers Shooed . | . . . . Parts Field Recycled . | . . . . Retrieved Matter . | . . . . Parts Self-Destructed . | . . . . Prevented . | . . . . Parts Restored . | . . . . Kills | -11 -10 -10 -9 ------- Run | Yrd Mat Min Mat Combat Hostiles Destroyed 20 | . 4 . 16 Melee 4 | . . . 4 Guns 5 | . 4 . 1 AOE 3 | . . . 3 Classes Destroyed 8 | 2 2 1 3 Worker 1 | . . 1 . Tunneler 2 | 1 . 1 . Recycler 2 | 1 . 1 . Operator 1 | . . . 1 Watcher 1 | . 1 . . Grunt 14 | . 4 . 10 Duelist 2 | . . . 2 Sentry 4 | . . . 4 Best Kill Streak 5 | 1 3 2 5 Combat Bots Only 5 | . 3 . 5 Max Kills in Single Turn 1 | 1 1 1 1 Gunslinging . | . . . . Exploded 1 | . . . 1 Melee 1 | . . . 1 Uniques/NPCs Destroyed . | . . . . Combat | -11 -10 -10 -9 -------- Run | Yrd Mat Min Mat Hostile Shots Fired 137 | . 13 . 124 Missed 32 | . 3 . 29 Hits 105 | . 10 . 95 Melee 1 | . . . 1 Projectile 104 | . 10 . 94 Critical Strikes 2 | . . . 2 Damage Taken 1305 | . 117 . 1188 Core 437 | . 37 . 400 Absorbed by Shields . | . . . . Core Remaining (%) 92 | 100 . 85 . Volleys Fired 36 | 2 16 5 13 Largest 2 | 2 2 2 2 Hottest 100 | 80 100 80 80 Shots Fired 57 | 4 28 10 15 Gun 52 | 4 27 10 11 Cannon . | . . . . Launcher 4 | . . . 4 Special 1 | . 1 . . Kinetic . | . . . . Thermal 33 | 2 18 5 8 Explosive 4 | . . . 4 Electromagnetic 20 | 2 10 5 3 Robot Hit Streak 6 | 1 6 5 5 Robot Miss Streak 2 | 1 2 2 1 Penetration Max . | . . . . Secondary Targets . | . . . . Shots Hit Robots 61 | 2 16 5 38 Core Hits 28 | 2 9 4 13 Critical Kills 2 | . . . 2 Critical Parts Destroyed 5 | . . . 5 Critical Strikes 7 | . . . 7 Smash 7 | . . . 7 Melee Attacks 40 | . . . 40 Impact 40 | . . . 40 Slashing . | . . . . Piercing . | . . . . Sneak Attacks 2 | . . . 2 Combat Hostiles . | . . . . Follow-up Attacks . | . . . . Damage Inflicted 1978 | 27 192 58 1701 Guns 391 | 27 192 58 114 Cannons . | . . . . Explosions 240 | . . . 240 Melee 1347 | . . . 1347 Ramming . | . . . . Kinetic . | . . . . Thermal 277 | 12 108 21 136 Explosive 184 | . . . 184 Electromagnetic 170 | 15 84 37 34 Impact 1347 | . . . 1347 Slashing . | . . . . Piercing . | . . . . Highest Corruption 19 | . . . 19 Average Corruption 18 | . . . 18 Corruption Purged . | . . . . Corruption Blocked . | . . . . Effects 5 | . . . 5 Message Errors 1 | . . . 1 Matter Fused 1 | . . . 1 Heat Flow Errors 1 | . . . 1 Data Loss (minor) 1 | . . . 1 Misdirections 1 | . . . 1 Overload Shots . | . . . . Overflow Damage 393 | . . . 393 Projectiles . | . . . . Explosions 7 | . . . 7 Melee 386 | . . . 386 Knockbacks 8 | . . . 8 Impact 6 | . . . 6 Kinetic . | . . . . Secondary 2 | . . . 2 Self-Inflicted Damage 46 | . . . 46 Shots 2 | . . . 2 Rammed . | . . . . Targets Rammed . | . . . . Kicked . | . . . . Crushed . | . . . . Highest Temperature 108 | 18 108 18 104 Average Temperature 28 | 12 33 12 29 Received Heat Transfer 633 | . 66 . 567 Siege Activations . | . . . . Martial Activations . | . . . . Shielding Activations . | . . . . Robots Disrupted . | . . . . Combat Hostiles . | . . . . Robots Corrupted 8 | . . . 8 Combat Hostiles 8 | . . . 8 Parts Fried 6 | . . . 6 Impact Corruptions 15 | . . . 15 Robots Melted . | . . . . Combat Hostiles . | . . . . Parts Melted . | . . . . Heat Transferred 573 | 25 250 50 248 Parts Sabotaged . | . . . . Parts Stolen . | . . . . Parts Stripped . | . . . . Power Chain Reactions 1 | . . . 1 Alert | -11 -10 -10 -9 ------- Run | Yrd Mat Min Mat Maximum Alert Level 1 | . . . 1 Low Security (%) 88 | 100 100 100 59 Level 1 11 | . . . 40 Level 2 . | . . . . Level 3 . | . . . . Level 4 . | . . . . Level 5 . | . . . . High Security . | . . . . Max Security . | . . . . Peak Influence 301 | 5 70 17 301 Initial 17 | . . 17 . Average 51 | . 35 1 150 Influence Increases 684 | 10 138 15 521 Destroy 0b10 Robot/C 400 | . 80 . 320 Destroy 0b10 Robot/NC 35 | 10 5 15 5 Destroy Leader 122 | . 22 . 100 Successful Hack 22 | . . . 22 Select Force Hacks 30 | . . . 30 Destroy Structure 30 | . 1 . 29 Partial Spotted 30 | . 30 . . Lose Combat Pursuer 15 | . . . 15 Influence Decreases 443 | 10 93 60 280 Entered New Map 28 | . . 28 . Time Decay 305 | 10 93 32 170 Lost Part 110 | . . . 110 Squads Dispatched 4 | . 1 . 3 Investigation 2 | . . . 2 Extermination . | . . . . Reinforcement 2 | . 1 . 1 Assault . | . . . . Garrison . | . . . . Intercept . | . . . . Searches Triggered . | . . . . Construction Impeded . | . . . . Haulers Reinforced . | . . . . Active Scanning Responses . | . . . . Cargo Convoy Interrupts . | . . . . Stealth | -11 -10 -10 -9 --------- Run | Yrd Mat Min Mat Distress Signals 3 | . 1 . 2 Communications Jammed . | . . . . Distress Signals . | . . . . Times Spotted 34 | . 7 . 27 Peak Tracking Total 11 | . 2 . 11 Tactical Retreats 1 | . . . 1 Traps | -11 -10 -10 -9 ------- Run | Yrd Mat Min Mat Traps Triggered . | . . . . Indirectly . | . . . . Trap Hack Attempts . | . . . . Triggered . | . . . . Disarmed . | . . . . Reprogrammed . | . . . . Reused . | . . . . Traps Extracted . | . . . . Installed . | . . . . Triggered . | . . . . Machines | -11 -10 -10 -9 ---------- Run | Yrd Mat Min Mat Machines Disabled . | . . . . Max in Single Turn . | . . . . Machines Repaired . | . . . . Machines Dismantled . | . . . . Machines Sabotaged . | . . . . Overloaded Fab Kills . | . . . . Hacking | -11 -10 -10 -9 --------- Run | Yrd Mat Min Mat Machines Accessed 5 | . 1 . 4 Terminals 4 | . 1 . 3 Fabricators . | . . . . Repair Stations . | . . . . Recycling Units . | . . . . Scanalyzers 1 | . . . 1 Garrison Access . | . . . . Total Hacks 22 | . 3 . 19 Successful 10 | . 1 . 9 Failed 12 | . 2 . 10 Catastrophic 2 | . . . 2 Database Lockouts . | . . . . Manual 11 | . 1 . 10 Terminals 19 | . 3 . 16 Fabricators . | . . . . Repair Stations . | . . . . Recycling Units . | . . . . Scanalyzers 3 | . . . 3 Garrison Access . | . . . . Terminal Hacks 4 | . . . 4 Branch Access Points 1 | . . . 1 Emergency Access Points 1 | . . . 1 Terminal Index 1 | . . . 1 Recall Investigation 1 | . . . 1 Fabricator Hacks . | . . . . Repair Station Hacks . | . . . . Recycling Unit Hacks . | . . . . Scanalyzer 1 | . . . 1 Retrieve Study 1 | . . . 1 Garrison Access Hacks . | . . . . Unauthorized Hacks 5 | . 1 . 4 Terminals 4 | . 1 . 3 Botnet 4 | . 1 . 3 Fabricators . | . . . . Repair Stations . | . . . . Recycling Units . | . . . . Scanalyzers 1 | . . . 1 Extract 1 | . . . 1 Garrison Access . | . . . . Data Cores Recovered . | . . . . Used . | . . . . Hacking Detections 5 | . 1 . 4 Full Trace Events 2 | . 1 . 1 Feedback Events . | . . . . Feedback Blocked . | . . . . Robot Schematics Acquired . | . . . . Robots Built . | . . . . Authchips . | . . . . Time . | . . . . Total Robot Build Rating . | . . . . Part Schematics Acquired 17 | . . . 17 Parts Built . | . . . . Authchips . | . . . . Time . | . . . . Total Part Build Rating . | . . . . Part Studies Acquired 1 | . . . 1 Parts Repaired . | . . . . Time . | . . . . Parts Recycled . | . . . . Recycled Matter . | . . . . Retrieved Matter . | . . . . Retrieved Components . | . . . . Parts Scanalyzed . | . . . . Part Schematics Acquired . | . . . . Parts Damaged . | . . . . Bothacking | -11 -10 -10 -9 ------------ Run | Yrd Mat Min Mat Used RIF Installer . | . . . . Robots Hacked . | . . . . Non-combat . | . . . . Combat . | . . . . Robot Hacks Applied . | . . . . Relay Couplers Released . | . . . . Fabnet Peak Effective % . | . . . . Robots Rewired . | . . . . Allies Hacked . | . . . . Hacks Repelled . | . . . . Allies | -11 -10 -10 -9 -------- Run | Yrd Mat Min Mat Total Allies . | . . . . Largest Group . | . . . . Highest-Rated Group . | . . . . Highest-Rated Ally . | . . . . Total Orders . | . . . . Ally Attacks . | . . . . Total Damage . | . . . . Kills . | . . . . Allies Corrupted . | . . . . Allies Melted . | . . . . Intel | -11 -10 -10 -9 ------- Run | Yrd Mat Min Mat Active Infowar (turns) 1196 | 54 216 579 347 Terrain 264 | . . . 264 Structural 1034 | . 108 579 347 Seismic 162 | 54 108 . . Robot Analysis Total . | . . . . Derelict Logs Recovered 1 | . . 1 . Drone Launches . | . . . . Drone Recoveries . | . . . . Exploration | -11 -10 -10 -9 ------------- Run | Yrd Mat Min Mat Turns Passed 1309 | 121 217 579 392 Spaces Moved 1213 | 118 183 686 226 Core 4 | 2 . . 2 Treads . | . . . . Legs 6 | . . . 6 Wheels 1198 | 116 183 686 213 Hover 5 | . . . 5 Flight . | . . . . Fastest Speed 50 | 50 80 80 70 Average Speed 82 | 79 80 80 94 Slowest Speed 400 | 80 80 80 400 Overloaded Moves . | . . . . Propulsion Burnouts . | . . . . Robots Hopped . | . . . . Potential Cave-ins . | . . . . Cave-ins Triggered . | . . . . Exploration Rate (%) 41 | 4 40 96 24 Regions Visited 3 Branch Regions 1 Pre-discovered Areas . | . . . . Known Exits Taken . | . . . . Unknown Exits Taken 3 | 1 1 1 . Scrap Searched 1 | . . 1 . Spaces Dug 1 | . 1 . . Terrain Destroyed 29 | . 1 . 28 Melee . | . . . . Projectile 1 | . 1 . . AOE 28 | . . . 28 Terrain Rammed . | . . . . Walls Destroyed . | . . . . Machines Disabled . | . . . . Actions | -11 -10 -10 -9 --------- Run | Yrd Mat Min Mat Total 1415 | 136 221 707 351 Wait 72 | . 10 11 51 Move 1210 | 117 182 685 226 Hop . | . . . . Pick Up 18 | 8 3 2 5 Fast Attach 10 | 7 . . 3 Attach 6 | . . . 6 Detach 1 | . . . 1 Swap 13 | 2 7 1 3 Drop 9 | . 3 3 3 Fire 36 | 2 16 5 13 Melee 40 | . . . 40 Ram . | . . . . Kick . | . . . . Crush . | . . . . Escape Stasis . | . . . . Rewire . | . . . . Trap . | . . . . Miscellaneous . | . . . . Route ------- -11/Scrapyard -10/Materials -10/Mines (discovered 2 exits: *Mat x2) -9/Materials (discovered 2 exits: Mat / *Min) History --------- Turn | Location | Event 10 | -11/Scrapyard | Discovered new exit (range 16) 122 | -11/Scrapyard | Entered Materials 283 | -10/Materials | Discovered new exit (range 12) 311 | -10/Materials | Build established: Mutant 339 | -10/Materials | Entered Mines 371 | -10/Mines | Discovered new exit (range 6) 413 | -10/Mines | A weapon hastily lodged in a ceiling crevice suddenly fell to the ground 428 | -10/Mines | Learned location of 1 exit from Materials 758 | -10/Mines | Discovered new exit (range 9) 918 | -10/Mines | Entered Materials 918 | -9/Materials | Evolved 2 slots: Utility x2 919 | -9/Materials | Identified exit to Materials 1085 | -9/Materials | Identified exit to Mines 1222 | -9/Materials | System corruption reached 10% 1232 | -9/Materials | Lost 4 parts (1p2n1u) 1278 | -9/Materials | Core integrity fell below 50% 1307 | -9/Materials | Core integrity fell below 20% 1310 | -9/Materials | Destroyed by G-34 Mercenary with Small Laser Last Messages --------------- 01268_ Destroyed Sml. Laser. 01268_ G-34 Mercenary system corrupted by crushing effect. 01269_ G-34 Mercenary system terminally corrupted. 01269_ K-01 Serf collects debris. 01270_ Sneak attack on R-06 Scavenger. 01272_ Acquired 7 matter. 01273_ Wheel+ destroyed. 01273_ K-01 Serf collects debris. 01274_ Acquired 10 matter. 01274_ K-01 Serf collects debris. 01275_ System corrupted: Heat flow error (+120). 01277_ K-01 Serf collects debris. 01282_ W-16 Scout sends out distress signal. 01287_ Aluminum Leg destroyed. 01295_ &5SJ2SS g ????????? | | ############### g g a ????????? | | ??????????????# #####" "##+###???????????? | | ??????????????## ######" |"| "#????????????????? | | ???????????????# #????#"""""""#????????????????? | | ???????????????# #????#########????????????????? | | ???????????????# #?????????????????????????????? | | ???????????????# #?????????????????????????????? | | ???????????????# #?????????????????????????????? | | ???????????????# #?????????????????????????????? | | ??????????????? /?????????????????????????????? | | ??????????????? #?????????????????????????????? | | ?????????????? #?????????????????????????????? | | ??????????????######?????????????????????????????? | | ?????????????????????????????????????????????????? | | ?????????????????????????????????????????????????? | | ?????????????????????????????????????????????????? | | ?????????????????????????????????????????????????? | | ?????????????????????????????????????????????????? | | ?????????????????????????????????????????????????? | | ?????????????????????????????????????????????????? | | ?????????????????????????????????????????????????? | | ?????????????????????????????????????????????????? | | ?????????????????????????????????????????????????? | | ?????????????????????????????????????????????????? | +----------------------------------------------------+ Best States ------------- Heat Dissipation 28 Coolant Potential 50 Energy Generation 12 Energy Capacity 265 Matter Stores 300 Matter Capacity 500 Sight Range 16 Terrain Scan Range 16 Terrain Scan Density 10 Evasion (%) 46 Item Schematics ----------------- Terrain Scan Processor | -9/Materials | Extracted Tractor Beam | -9/Materials | Extracted Trap Extractor | -9/Materials | Extracted Imp. Light Cannon | -9/Materials | Extracted Sml. Laser | -9/Materials | Extracted Mace | -9/Materials | Extracted Sml. Storage Unit | -9/Materials | Extracted Lgt. EM Pulse Cannon | -9/Materials | Extracted Flight Unit | -9/Materials | Extracted Imp. Medium Laser | -9/Materials | Extracted Hammer | -9/Materials | Extracted Sensor Array | -9/Materials | Extracted Heat Sink | -9/Materials | Extracted Autogun | -9/Materials | Extracted Lrg. Storage Unit | -9/Materials | Extracted Datajack | -9/Materials | Extracted Lrg. Battery | -9/Materials | Extracted Robot Schematics ------------------ None Fabricated ------------ Nothing Repaired ---------- Nothing Studied --------- Wheel | -9/Materials | Hacked Alien Tech Used ----------------- None Achievements -------------- None Challenges ------------ None Game ------ Seed PitchforkFocalWand Manual? 0 Play Time 00:23:08 Cumulative 86.8 hours Start 2026.07.08 @ 21:52:54 End 2026.07.14 @ 21:26:48 Sessions 2 Manual Loads 0 Difficulty Rogue Special Mode None Game No. 81 Rogue 81 Adventurer 0 Explorer 0 Win Type - Total 1 Types 1/0/0/0/0/0/0/0/0/0 Lore% 46 Gallery% 43 Achievement% 34 Wizard Run 0 Options --------- Layout 1 ASCII 0 Keyboard 1 Movement Vi Keybinds 0 Fullscreen 2 Font 24/Smallcaps Map View 50x35 Zoom Use 0% Tactical HUD 1 Map Filters NONE Filters NONE Steam 1 RUN: d5bc20ca-9561-4d52-a071-997cd022fb18